[Event "8th Palmanova Open 2019"]
[Site "Palmanova"]
[Date "2019.12.07"]
[Round "2.11"]
[White "Maione, Melissa"]
[Black "Laco, Giuseppe"]
[Result "1/2-1/2"]
[ECO "B45"]
[WhiteElo "1836"]
[BlackElo "1972"]
[Annotator "NA"]
[PlyCount "98"]
[EventDate "2019.12.06"]
[EventType "swiss"]
[EventCountry "ITA"]
[SourceTitle "playchess.com"]
[Source "ChessBase"]
[SourceQuality "1"]
[TimeControl "5400+30"]

1. e4 {[%emt 0:00:00]} c5 {[%emt 0:00:00]} 2. Nf3 {[%emt 0:00:00]} Nc6 {[%emt 0:00:06]} 3. d4 {[%emt 0:00:00]} cxd4 {[%emt 0:00:07]} 4. Nxd4 {[%emt 0:00:09]} Nf6 {[%emt 0:00:45]} 5. Nc3 {[%emt 0:00:24]} e6 {[%emt 0:02:07]} 6. Nxc6 {[%emt 0:02:15]} bxc6 {[%emt 0:00:10]} 7. e5 {[%emt 0:00:31]} Ng8 {[%emt 0:01:41]} 8. Bd3 {[%emt 0:02:30]} f5 {[%emt 0:01:19]} 9. g4 {[%emt 0:02:14]} Qa5 {[%emt 0:06:02]} 10. f4 {[%emt 0:02:29]} g6 {[%emt 0:04:45]} 11. gxf5 {[%emt 0:02:17]} gxf5 {[%emt 0:06:39]} 12. Bd2 {[%emt 0:01:20]} Bb4 {[%emt 0:06:18]} 13. a3 {[%emt 0:03:20]} Be7 $18 {[%emt 0:06:51]} 14. Qh5+ {[%emt 0:03:36]} Kf8 {[%emt 0:02:24]} 15. Rg1 {[%emt 0:02:44]} Rb8 {[%emt 0:05:54]} 16. Ne2 {[%emt 0:07:13]} Qb6 {[%emt 0:02:55]} 17. Bc3 {[%emt 0:03:35]} a5 {[%emt 0:07:05]} 18. Bxf5 {[%emt 0:02:30]} Bc5 {[%emt 0:02:43]} 19. Rg2 {[%emt 0:00:25]} Qd8 {[%emt 0:10:12]} 20. Bxh7 {[%emt 0:01:35]} Qe7 {[%emt 0:02:36]} 21. Rxg8+ {[%emt 0:00:49]} Rxg8 {[%emt 0:00:09]} 22. Bxg8 {[%emt 0:00:11]} Kxg8 {[%emt 0:00:08]} 23. Qg5+ {[%emt 0:03:48]} Qxg5 {[%emt 0:02:18]} 24. fxg5 {[%emt 0:00:05]} Be3 {[%emt 0:00:08]} 25. h4 {[%emt 0:00:25]} Kf7 {[%emt 0:01:58]} 26. b3 {[%emt 0:01:19]} a4 {[%emt 0:00:50]} 27. bxa4 {[%emt 0:00:36]} Ba6 {[%emt 0:00:41]} 28. Rd1 {[%emt 0:01:01]} Ke7 {[%emt 0:00:49]} 29. Bd4 {[%emt 0:01:54]} Bxd4 {[%emt 0:05:05]} 30. Nxd4 {[%emt 0:00:27]} Rf8 {[%emt 0:02:23]} 31. g6 {[%emt 0:07:59]} Rf1+ {[%emt 0:07:03]} 32. Kd2 {[%emt 0:01:48]} Rf4 {[%emt 0:00:24]} 33. Ke3 {[%emt 0:00:35]} Rxh4 {[%emt 0:00:23]} 34. Nf3 {[%emt 0:01:22]} Rxa4 {[%emt 0:00:49]} 35. Rd4 {[%emt 0:03:48]} Rxa3+ {[%emt 0:01:33]} 36. Kf4 {[%emt 0:00:07]} Be2 {[%emt 0:00:29]} 37. Ng5 {[%emt 0:00:55]} Bh5 {[%emt 0:01:15]} 38. g7 {[%emt 0:01:01]} Ra8 {[%emt 0:00:02]} 39. Nh7 {[%emt 0:00:38]} Bf7 {[%emt 0:04:33]} 40. Nf6 {[%emt 0:00:24]} Rd8 {[%emt 0:00:02]} 41. Kg5 {[%emt 0:00:16]} d6 {[%emt 0:04:35]} 42. exd6+ {[%emt 0:05:55]} Rxd6 {[%emt 0:00:45]} 43. Rxd6 {[%emt 0:02:03]} Kxd6 {[%emt 0:00:04]} 44. Kf4 {[%emt 0:00:59]} Kc5 {[%emt 0:01:00]} 45. g8=Q {[%emt 0:00:26]} Bxg8 {[%emt 0:00:13]} 46. Nxg8 {[%emt 0:00:03]} Kd4 {[%emt 0:00:09]} 47. Nf6 {[%emt 0:00:27]} e5+ {[%emt 0:00:23]} 48. Kf5 {[%emt 0:00:11]} Kc3 {[%emt 0:00:52]} 49. Ne4+ {[%emt 0:00:09]} Kxc2 {[%emt 0:00:11]} 1/2-1/2

[Event "8th Palmanova Open 2019"]
[Site "Palmanova"]
[Date "2019.12.07"]
[Round "3.1"]
[White "Kobal, Sasa"]
[Black "Margl, Roland"]
[Result "1/2-1/2"]
[ECO "A03"]
[WhiteElo "2100"]
[BlackElo "2249"]
[Annotator "NA"]
[PlyCount "20"]
[EventDate "2019.12.06"]
[EventType "swiss"]
[EventCountry "ITA"]
[SourceTitle "playchess.com"]
[Source "ChessBase"]
[SourceQuality "1"]
[TimeControl "5400+30"]

1. b3 {[%emt 0:01:20]} d5 {[%emt 0:00:00]} 2. Bb2 {[%emt 0:00:05]} c5 {[%emt 0:00:29]} 3. e3 {[%emt 0:00:07]} Nf6 {[%emt 0:01:43]} 4. f4 {[%emt 0:00:42]} g6 {[%emt 0:00:11]} 5. Nf3 {[%emt 0:00:14]} Bg7 {[%emt 0:00:06]} 6. Be2 {[%emt 0:00:31]} O-O {[%emt 0:00:16]} 7. O-O {[%emt 0:00:20]} Nc6 {[%emt 0:00:27]} 8. Ne5 {[%emt 0:02:01]} Qc7 {[%emt 0:04:30]} 9. Bf3 {[%emt 0:04:13]} Be6 {[%emt 0:08:18]} 10. d4 {[%emt 0:11:38]} cxd4 {[%emt 0:04:18]} 1/2-1/2

[Event "8th Palmanova Open 2019"]
[Site "Palmanova"]
[Date "2019.12.07"]
[Round "3.2"]
[White "Zamengo, Fulvio"]
[Black "Ghersinich, Enrico"]
[Result "1-0"]
[ECO "B76"]
[WhiteElo "2357"]
[BlackElo "2157"]
[Annotator "NA"]
[PlyCount "65"]
[EventDate "2019.12.06"]
[EventType "swiss"]
[EventCountry "ITA"]
[SourceTitle "playchess.com"]
[Source "ChessBase"]
[SourceQuality "1"]
[TimeControl "5400+30"]

1. e4 {[%emt 0:02:18]} c5 {[%emt 0:00:00]} 2. Nf3 {[%emt 0:00:24]} d6 {[%emt 0:00:13]} 3. d4 {[%emt 0:00:59]} cxd4 {[%emt 0:00:15]} 4. Nxd4 {[%emt 0:02:35]} Nf6 {[%emt 0:00:12]} 5. Nc3 {[%emt 0:00:08]} g6 {[%emt 0:01:07]} 6. Be3 {[%emt 0:00:06]} Bg7 {[%emt 0:00:17]} 7. f3 {[%emt 0:00:07]} O-O {[%emt 0:00:07]} 8. Qd2 {[%emt 0:00:03]} Nc6 {[%emt 0:00:09]} 9. O-O-O {[%emt 0:00:07]} d5 {[%emt 0:00:55]} 10. exd5 {[%emt 0:00:14]} Nxd5 {[%emt 0:00:06]} 11. Nxc6 {[%emt 0:00:07]} bxc6 {[%emt 0:00:05]} 12. Bd4 {[%emt 0:00:09]} Bxd4 {[%emt 0:00:08]} 13. Qxd4 {[%emt 0:00:06]} Qb6 {[%emt 0:00:04]} 14. Na4 {[%emt 0:00:07]} Qc7 {[%emt 0:00:07]} 15. Bc4 {[%emt 0:01:51]} Rb8 {[%emt 0:08:08]} 16. b3 {[%emt 0:17:44]} Qa5 {[%emt 0:15:54]} 17. Rhe1 {[%emt 0:17:00]} Nb6 {[%emt 0:13:20]} 18. Re5 {[%emt 0:07:04]} Nd5 {[%emt 0:02:35]} 19. h4 {[%emt 0:10:35]} Qb4 {[%emt 0:10:42]} 20. h5 {[%emt 0:12:23]} Qa3+ {[%emt 0:01:30]} 21. Nb2 {[%emt 0:00:12]} Bf5 {[%emt 0:16:01]} 22. g4 {[%emt 0:17:58]} Bxc2 {[%emt 0:00:36]} 23. Kxc2 {[%emt 0:04:50]} Nb4+ {[%emt 0:00:31]} 24. Kc1 {[%emt 0:00:01]} Qxa2 {[%emt 0:00:31]} 25. hxg6 {[%emt 0:00:29]} hxg6 {[%emt 0:02:23]} 26. Rxe7 {[%emt 0:01:26]} Qa1+ {[%emt 0:13:27]} 27. Kd2 {[%emt 0:00:07]} Qa5 {[%emt 0:00:03]} 28. Rh1 {[%emt 0:02:55]} Nd5+ {[%emt 0:04:14]} 29. Ke2 {[%emt 0:00:06]} f6 {[%emt 0:02:21]} 30. g5 {[%emt 0:00:01]} Rf7 {[%emt 0:03:11]} 31. Rxf7 {[%emt 0:00:02]} Re8+ {[%emt 0:01:08]} 32. Kf2 {[%emt 0:00:03]} Qb6 {[%emt 0:01:07]} 33. Qxb6 {[%emt 0:00:08]} 1-0

[Event "8th Palmanova Open 2019"]
[Site "Palmanova"]
[Date "2019.12.07"]
[Round "3.3"]
[White "Dappiano, Andrea"]
[Black "Lekic, Dusan"]
[Result "1/2-1/2"]
[ECO "C45"]
[WhiteElo "2258"]
[BlackElo "2347"]
[Annotator "NA"]
[PlyCount "56"]
[EventDate "2019.12.06"]
[EventType "swiss"]
[EventCountry "ITA"]
[SourceTitle "playchess.com"]
[Source "ChessBase"]
[SourceQuality "1"]
[TimeControl "5400+30"]

1. e4 {[%emt 0:01:39]} e5 {[%emt 0:00:00]} 2. Nf3 {[%emt 0:00:22]} Nc6 {[%emt 0:00:00]} 3. d4 {[%emt 0:00:08]} exd4 {[%emt 0:00:08]} 4. Nxd4 {[%emt 0:00:05]} Nf6 {[%emt 0:00:10]} 5. Nxc6 {[%emt 0:00:29]} bxc6 {[%emt 0:00:15]} 6. e5 {[%emt 0:00:19]} Qe7 {[%emt 0:00:18]} 7. Qe2 {[%emt 0:00:04]} Nd5 {[%emt 0:00:08]} 8. c4 {[%emt 0:00:09]} Nb6 {[%emt 0:00:22]} 9. Nc3 {[%emt 0:01:10]} Qe6 {[%emt 0:01:50]} 10. Qe4 {[%emt 0:01:32]} g6 {[%emt 0:00:28]} 11. f4 {[%emt 0:01:56]} d5 {[%emt 0:08:34]} 12. exd6 {[%emt 0:10:13]} cxd6 {[%emt 0:03:05]} 13. Be3 {[%emt 0:14:39]} Bg7 {[%emt 0:00:40]} 14. O-O-O {[%emt 0:00:34]} Bxc3 {[%emt 0:01:40]} 15. Qxe6+ {[%emt 0:00:11]} Bxe6 {[%emt 0:00:32]} 16. bxc3 {[%emt 0:00:08]} Nxc4 {[%emt 0:07:49]} 17. Bxc4 {[%emt 0:01:31]} Bxc4 {[%emt 0:00:08]} 18. Rxd6 {[%emt 0:01:55]} Bd5 {[%emt 0:08:07]} 19. Bc5 {[%emt 0:20:34]} O-O {[%emt 0:00:12]} 20. Rxd5 {[%emt 0:00:04]} cxd5 {[%emt 0:00:12]} 21. Bxf8 {[%emt 0:00:04]} Kxf8 {[%emt 0:00:19]} 22. Rd1 {[%emt 0:01:28]} Rc8 {[%emt 0:00:28]} 23. Kb2 {[%emt 0:07:02]} Rc5 {[%emt 0:01:37]} 24. Re1 {[%emt 0:01:07]} Rb5+ {[%emt 0:01:45]} 25. Kc2 {[%emt 0:00:39]} Ra5 {[%emt 0:00:10]} 26. Kb3 {[%emt 0:00:56]} Rb5+ {[%emt 0:00:09]} 27. Kc2 {[%emt 0:00:06]} Ra5 {[%emt 0:00:08]} 28. Kb3 {[%emt 0:00:07]} Rb5+ {[%emt 1:04:46]} 1/2-1/2

[Event "8th Palmanova Open 2019"]
[Site "Palmanova"]
[Date "2019.12.07"]
[Round "3.4"]
[White "Lumachi, Gabriele"]
[Black "Trussevich, Sergey"]
[Result "1/2-1/2"]
[ECO "A30"]
[WhiteElo "2241"]
[BlackElo "2280"]
[Annotator "NA"]
[PlyCount "135"]
[EventDate "2019.12.06"]
[EventType "swiss"]
[EventCountry "ITA"]
[SourceTitle "playchess.com"]
[Source "ChessBase"]
[SourceQuality "1"]
[TimeControl "5400+30"]

1. Nf3 {[%emt 0:00:00]} c5 {[%emt 0:00:00]} 2. c4 {[%emt 0:02:32]} e6 {[%emt 0:00:00]} 3. g3 {[%emt 0:00:31]} b6 {[%emt 0:00:48]} 4. Bg2 {[%emt 0:00:42]} Bb7 {[%emt 0:00:01]} 5. O-O {[%emt 0:00:37]} Nf6 {[%emt 0:00:03]} 6. b3 {[%emt 0:02:10]} Be7 {[%emt 0:00:17]} 7. Bb2 {[%emt 0:00:15]} O-O {[%emt 0:00:19]} 8. d3 {[%emt 0:02:33]} a6 {[%emt 0:02:28]} 9. Na3 {[%emt 0:09:01]} Qc7 {[%emt 0:00:35]} 10. e3 {[%emt 0:03:10]} Bc6 {[%emt 0:02:51]} 11. Qe2 {[%emt 0:05:32]} Qb7 {[%emt 0:02:08]} 12. e4 {[%emt 0:10:21]} d6 {[%emt 0:00:33]} 13. Nd2 {[%emt 0:04:09]} b5 {[%emt 0:04:28]} 14. f4 {[%emt 0:03:33]} Nfd7 {[%emt 0:14:13]} 15. Bh3 {[%emt 0:11:08]} Re8 {[%emt 0:02:48]} 16. Nc2 {[%emt 0:06:39]} Qc7 {[%emt 0:05:39]} 17. g4 {[%emt 0:05:37]} bxc4 {[%emt 0:06:20]} 18. Nxc4 {[%emt 0:00:29]} d5 {[%emt 0:02:52]} 19. Nd2 {[%emt 0:00:31]} dxe4 {[%emt 0:02:06]} 20. Nxe4 {[%emt 0:03:11]} Bb7 {[%emt 0:08:52]} 21. Ne3 {[%emt 0:01:31]} Nc6 {[%emt 0:00:41]} 22. Rac1 {[%emt 0:02:12]} Qd8 {[%emt 0:02:23]} 23. g5 {[%emt 0:06:15]} Nd4 {[%emt 0:02:34]} 24. Qf2 {[%emt 0:02:03]} Bf8 {[%emt 0:08:09]} 25. Bg2 {[%emt 0:00:36]} Rb8 {[%emt 0:01:14]} 26. Ng4 {[%emt 0:01:45]} Nf5 {[%emt 0:06:40]} 27. h4 {[%emt 0:00:01]} Bxe4 {[%emt 0:06:04]} 28. dxe4 {[%emt 0:00:38]} Nd4 {[%emt 0:02:55]} 29. Kh1 {[%emt 0:02:20]} f5 {[%emt 0:03:56]} 30. Ne3 {[%emt 0:02:38]} g6 {[%emt 0:05:28]} 31. Rcd1 {[%emt 0:04:13]} Nb6 {[%emt 0:02:13]} 32. Nc2 {[%emt 0:00:53]} Bg7 {[%emt 0:03:29]} 33. e5 {[%emt 0:00:21]} Nd5 {[%emt 0:01:10]} 34. Nxd4 {[%emt 0:00:12]} cxd4 {[%emt 0:00:03]} 35. Rxd4 {[%emt 0:00:21]} Qa5 {[%emt 0:01:24]} 36. Bxd5 {[%emt 0:03:13]} exd5 {[%emt 0:00:01]} 37. Ra4 {[%emt 0:00:47]} Qb5 {[%emt 0:00:28]} 38. Rd1 {[%emt 0:00:28]} Rbc8 {[%emt 0:00:29]} 39. Qg2 {[%emt 0:00:34]} Kh8 {[%emt 0:01:45]} 40. Rad4 {[%emt 0:00:30]} Qa5 {[%emt 0:00:36]} 41. Ra4 {[%emt 0:01:28]} Qc5 {[%emt 0:00:00]} 42. Bd4 {[%emt 0:01:15]} Qb5 {[%emt 0:00:57]} 43. Qd2 {[%emt 0:00:37]} Qc6 {[%emt 0:00:42]} 44. Qd3 {[%emt 0:00:30]} Re6 {[%emt 0:00:20]} 45. Ra5 {[%emt 0:02:22]} Bf8 {[%emt 0:00:24]} 46. Kg1 {[%emt 0:01:02]} Bb4 {[%emt 0:00:38]} 47. Ra4 {[%emt 0:00:01]} Qb7 {[%emt 0:00:42]} 48. Bf2 {[%emt 0:00:44]} d4 {[%emt 0:00:29]} 49. a3 {[%emt 0:00:47]} Bc5 {[%emt 0:00:43]} 50. Rc4 {[%emt 0:00:20]} Bxa3 {[%emt 0:00:24]} 51. Rxc8+ {[%emt 0:01:00]} Qxc8 {[%emt 0:00:01]} 52. Qxd4 {[%emt 0:00:26]} Qc6 {[%emt 0:01:01]} 53. Qd8+ {[%emt 0:00:26]} Re8 {[%emt 0:00:26]} 54. Qf6+ {[%emt 0:00:23]} Qxf6 {[%emt 0:00:05]} 55. gxf6 {[%emt 0:00:08]} Kg8 {[%emt 0:00:52]} 56. Rd7 {[%emt 0:00:21]} Re6 {[%emt 0:00:18]} 57. Rg7+ {[%emt 0:01:17]} Kh8 {[%emt 0:00:35]} 58. Rb7 {[%emt 0:00:25]} Kg8 {[%emt 0:00:05]} 59. Rb8+ {[%emt 0:00:12]} Kf7 {[%emt 0:00:20]} 60. Rh8 {[%emt 0:00:52]} Rc6 {[%emt 0:01:14]} 61. Rxh7+ {[%emt 0:00:22]} Ke6 {[%emt 0:00:02]} 62. Ra7 {[%emt 0:00:32]} Bb4 {[%emt 0:01:04]} 63. Kg2 {[%emt 0:00:40]} a5 {[%emt 0:00:16]} 64. Rg7 {[%emt 0:00:54]} Rc2 {[%emt 0:00:01]} 65. Kf1 {[%emt 0:00:27]} Rc1+ {[%emt 0:00:19]} 66. Kg2 {[%emt 0:00:20]} Rc2 {[%emt 0:00:01]} 67. Kf1 {[%emt 0:00:46]} Rc1+ {[%emt 0:00:01]} 68. Kg2 {[%emt 0:00:27]} 1/2-1/2

[Event "8th Palmanova Open 2019"]
[Site "Palmanova"]
[Date "2019.12.07"]
[Round "3.5"]
[White "Belli, Giorgio"]
[Black "Savanovic, Aleksandar"]
[Result "0-1"]
[ECO "B05"]
[WhiteElo "2136"]
[BlackElo "2420"]
[Annotator "NA"]
[PlyCount "76"]
[EventDate "2019.12.06"]
[EventType "swiss"]
[EventCountry "ITA"]
[SourceTitle "playchess.com"]
[Source "ChessBase"]
[SourceQuality "1"]
[TimeControl "5400+30"]

1. e4 {[%emt 0:08:42]} Nf6 {[%emt 0:00:00]} 2. e5 {[%emt 0:00:07]} Nd5 {[%emt 0:00:00]} 3. d4 {[%emt 0:00:05]} d6 {[%emt 0:00:00]} 4. Nf3 {[%emt 0:00:06]} Bg4 {[%emt 0:00:00]} 5. Be2 {[%emt 0:00:12]} e6 {[%emt 0:00:01]} 6. c4 {[%emt 0:00:15]} Nb6 {[%emt 0:00:07]} 7. exd6 {[%emt 0:00:11]} cxd6 {[%emt 0:00:08]} 8. Nc3 {[%emt 0:00:09]} Be7 {[%emt 0:00:07]} 9. d5 {[%emt 0:00:44]} e5 {[%emt 0:00:39]} 10. h3 {[%emt 0:00:07]} Bh5 {[%emt 0:01:38]} 11. g4 {[%emt 0:00:13]} Bg6 {[%emt 0:00:06]} 12. h4 {[%emt 0:00:09]} h5 {[%emt 0:00:06]} 13. g5 {[%emt 0:01:00]} Qc8 {[%emt 0:13:49]} 14. Be3 {[%emt 0:02:12]} N6d7 {[%emt 0:06:06]} 15. Rc1 {[%emt 0:05:14]} a5 {[%emt 0:14:45]} 16. Bd3 {[%emt 0:01:32]} Na6 {[%emt 0:05:00]} 17. Bxg6 {[%emt 0:02:42]} fxg6 {[%emt 0:00:07]} 18. Qd3 {[%emt 0:00:13]} O-O {[%emt 0:02:45]} 19. Nd2 {[%emt 0:06:00]} Kh7 {[%emt 0:02:31]} 20. Nce4 {[%emt 0:02:59]} Ndc5 {[%emt 0:00:35]} 21. Qb1 {[%emt 0:04:58]} Nxe4 {[%emt 0:05:10]} 22. Nxe4 {[%emt 0:00:18]} Rf3 {[%emt 0:05:35]} 23. Kd2 {[%emt 0:03:49]} a4 {[%emt 0:04:18]} 24. Ng3 {[%emt 0:07:56]} Qg4 {[%emt 0:00:21]} 25. Ne4 {[%emt 0:01:03]} Bd8 {[%emt 0:04:45]} 26. Rcg1 {[%emt 0:03:17]} Ba5+ {[%emt 0:09:09]} 27. Ke2 {[%emt 0:08:00]} Rxe3+ {[%emt 0:00:25]} 28. Kxe3 {[%emt 0:00:27]} Qf4+ {[%emt 0:00:07]} 29. Ke2 {[%emt 0:00:11]} Rf8 {[%emt 0:00:29]} 30. Qd3 {[%emt 0:02:35]} Nc5 {[%emt 0:00:14]} 31. Nxc5 {[%emt 0:00:04]} Qxf2+ {[%emt 0:00:10]} 32. Kd1 {[%emt 0:00:03]} Rf3 {[%emt 0:02:56]} 33. Qe2 {[%emt 0:01:49]} Qd4+ {[%emt 0:00:16]} 34. Kc1 {[%emt 0:00:25]} Rf2 {[%emt 0:00:22]} 35. Ne6 {[%emt 0:05:05]} Qa7 {[%emt 0:05:42]} 36. Qxf2 {[%emt 0:19:16]} Qxf2 {[%emt 0:00:08]} 37. Rf1 {[%emt 0:00:09]} Qd2+ {[%emt 0:00:13]} 38. Kb1 {[%emt 0:00:02]} a3 {[%emt 0:00:19]} 0-1

[Event "8th Palmanova Open 2019"]
[Site "Palmanova"]
[Date "2019.12.07"]
[Round "3.6"]
[White "Garau, Francesca"]
[Black "Forti, Francesco"]
[Result "0-1"]
[ECO "C06"]
[WhiteElo "1830"]
[BlackElo "1903"]
[Annotator "NA"]
[PlyCount "46"]
[EventDate "2019.12.06"]
[EventType "swiss"]
[EventCountry "ITA"]
[SourceTitle "playchess.com"]
[Source "ChessBase"]
[SourceQuality "1"]
[TimeControl "5400+30"]

1. e4 {[%emt 0:00:00]} e6 {[%emt 0:00:35]} 2. d4 {[%emt 0:00:00]} d5 {[%emt 0:00:02]} 3. Nd2 {[%emt 0:00:00]} Nf6 {[%emt 0:00:33]} 4. e5 {[%emt 0:00:13]} Nfd7 {[%emt 0:00:02]} 5. Ngf3 {[%emt 0:00:14]} c5 {[%emt 0:00:09]} 6. c3 {[%emt 0:00:24]} Nc6 {[%emt 0:00:18]} 7. Bd3 {[%emt 0:00:14]} cxd4 {[%emt 0:01:37]} 8. cxd4 {[%emt 0:00:18]} f6 {[%emt 0:02:00]} 9. O-O {[%emt 0:04:11]} Be7 {[%emt 0:12:06]} 10. Nh4 {[%emt 0:07:07]} O-O {[%emt 0:06:15]} 11. Ng6 {[%emt 0:18:50]} hxg6 {[%emt 0:05:22]} 12. Bxg6 {[%emt 0:02:28]} fxe5 {[%emt 0:00:42]} 13. Qh5 {[%emt 0:03:23]} Nf6 {[%emt 0:00:43]} 14. Qh3 {[%emt 0:01:14]} e4 {[%emt 0:08:52]} 15. Nf3 {[%emt 0:20:05]} exf3 {[%emt 0:10:38]} 16. Bg5 {[%emt 0:01:57]} Bb4 {[%emt 0:12:03]} 17. Bxf6 {[%emt 0:12:53]} Rxf6 {[%emt 0:00:26]} 18. Qh7+ {[%emt 0:00:33]} Kf8 {[%emt 0:00:14]} 19. a3 {[%emt 0:00:59]} Ba5 {[%emt 0:01:32]} 20. Qh8+ {[%emt 0:01:11]} Ke7 {[%emt 0:00:20]} 21. Qxg7+ {[%emt 0:00:18]} Kd6 {[%emt 0:00:19]} 22. h4 {[%emt 0:00:45]} Qf8 {[%emt 0:01:33]} 23. Qh7 {[%emt 0:01:13]} Bd7 {[%emt 0:00:32]} 0-1

[Event "8th Palmanova Open 2019"]
[Site "Palmanova"]
[Date "2019.12.07"]
[Round "3.7"]
[White "Bisaro, Andrea"]
[Black "Hercegovac, Neven"]
[Result "0-1"]
[ECO "A58"]
[WhiteElo "1845"]
[BlackElo "2003"]
[Annotator "NA"]
[PlyCount "90"]
[EventDate "2019.12.06"]
[EventType "swiss"]
[EventCountry "ITA"]
[SourceTitle "playchess.com"]
[Source "ChessBase"]
[SourceQuality "1"]
[TimeControl "5400+30"]

1. d4 {[%emt 0:00:00]} Nf6 {[%emt 0:00:00]} 2. c4 {[%emt 0:00:00]} c5 {[%emt 0:00:00]} 3. d5 {[%emt 0:00:00]} b5 {[%emt 0:00:00]} 4. cxb5 {[%emt 0:00:01]} a6 {[%emt 0:00:03]} 5. bxa6 {[%emt 0:00:09]} g6 {[%emt 0:00:22]} 6. Nc3 {[%emt 0:00:09]} Bg7 {[%emt 0:00:10]} 7. e4 {[%emt 0:00:52]} O-O {[%emt 0:00:08]} 8. Nf3 {[%emt 0:02:41]} Qa5 {[%emt 0:00:12]} 9. Bd2 {[%emt 0:04:55]} Bxa6 {[%emt 0:00:12]} 10. Bxa6 {[%emt 0:00:36]} Qxa6 {[%emt 0:00:08]} 11. Qe2 {[%emt 0:01:12]} e6 {[%emt 0:00:11]} 12. Qxa6 {[%emt 0:01:18]} Nxa6 {[%emt 0:00:20]} 13. O-O {[%emt 0:06:54]} exd5 {[%emt 0:00:49]} 14. exd5 {[%emt 0:00:20]} Nb4 {[%emt 0:00:15]} 15. a3 {[%emt 0:16:42]} Nbxd5 {[%emt 0:01:00]} 16. Rfd1 {[%emt 0:03:17]} Rfb8 {[%emt 0:12:50]} 17. Rab1 {[%emt 0:10:37]} Rb3 {[%emt 0:05:46]} 18. Be1 {[%emt 0:02:39]} Nc7 {[%emt 0:05:50]} 19. Rd6 {[%emt 0:13:32]} Ra6 {[%emt 0:03:21]} 20. Rxa6 {[%emt 0:05:46]} Nxa6 {[%emt 0:00:01]} 21. Nd2 {[%emt 0:02:19]} Rb8 {[%emt 0:01:07]} 22. f3 {[%emt 0:00:31]} d5 {[%emt 0:00:55]} 23. Bg3 {[%emt 0:00:17]} Rb7 {[%emt 0:03:01]} 24. Be5 {[%emt 0:02:33]} d4 {[%emt 0:05:51]} 25. Nd1 {[%emt 0:04:57]} Re7 {[%emt 0:02:57]} 26. Nc4 {[%emt 0:00:36]} Nd5 {[%emt 0:02:02]} 27. Bxg7 {[%emt 0:00:41]} Kxg7 {[%emt 0:00:02]} 28. Kf1 {[%emt 0:03:53]} Nf4 {[%emt 0:04:28]} 29. Nf2 {[%emt 0:00:40]} f5 {[%emt 0:03:12]} 30. g3 {[%emt 0:00:37]} Nd5 {[%emt 0:00:13]} 31. Re1 {[%emt 0:01:30]} Rb7 {[%emt 0:03:01]} 32. Nd1 {[%emt 0:01:50]} f4 {[%emt 0:01:49]} 33. Re6 {[%emt 0:03:07]} Nb8 {[%emt 0:01:35]} 34. Re5 {[%emt 0:03:14]} Rd7 {[%emt 0:01:03]} 35. gxf4 {[%emt 0:01:24]} Nc6 {[%emt 0:00:12]} 36. Re6 {[%emt 0:00:57]} Nd8 {[%emt 0:01:16]} 37. Re5 {[%emt 0:02:05]} d3 {[%emt 0:19:37]} 38. Re4 {[%emt 0:02:14]} Nf6 {[%emt 0:02:22]} 39. Re5 {[%emt 0:01:02]} Rd4 {[%emt 0:01:00]} 40. Rxc5 {[%emt 0:00:40]} Rxf4 {[%emt 0:02:06]} 41. Kg2 {[%emt 0:01:25]} Ne6 {[%emt 0:01:00]} 42. Rc8 {[%emt 0:01:11]} Nd5 {[%emt 0:02:38]} 43. a4 {[%emt 0:00:29]} Ne7 {[%emt 0:00:15]} 44. Kg3 {[%emt 0:00:46]} Nxc8 {[%emt 0:00:02]} 45. a5 {[%emt 0:00:05]} Rxc4 {[%emt 0:00:13]} 0-1

[Event "8th Palmanova Open 2019"]
[Site "Palmanova"]
[Date "2019.12.07"]
[Round "3.8"]
[White "Maione, Melissa"]
[Black "Savanovic, Maksim"]
[Result "0-1"]
[ECO "B15"]
[WhiteElo "1836"]
[BlackElo "2062"]
[Annotator "NA"]
[PlyCount "54"]
[EventDate "2019.12.06"]
[EventType "swiss"]
[EventCountry "ITA"]
[SourceTitle "playchess.com"]
[Source "ChessBase"]
[SourceQuality "1"]
[TimeControl "5400+30"]

1. e4 {[%emt 0:00:00]} c6 {[%emt 0:00:25]} 2. d4 {[%emt 0:00:00]} d5 {[%emt 0:00:01]} 3. Nd2 {[%emt 0:00:00]} dxe4 {[%emt 0:00:01]} 4. Nxe4 {[%emt 0:00:00]} Nf6 {[%emt 0:00:09]} 5. Nxf6+ {[%emt 0:00:18]} exf6 {[%emt 0:00:00]} 6. c3 {[%emt 0:01:37]} Bd6 {[%emt 0:00:03]} 7. Bd3 {[%emt 0:00:10]} O-O {[%emt 0:00:02]} 8. Qc2 {[%emt 0:00:32]} Re8+ {[%emt 0:00:01]} 9. Be3 {[%emt 0:00:39]} h6 {[%emt 0:01:20]} 10. O-O-O {[%emt 0:00:13]} Be6 {[%emt 0:01:08]} 11. c4 {[%emt 0:02:18]} Nd7 {[%emt 0:03:50]} 12. Ne2 {[%emt 0:03:10]} b5 {[%emt 0:01:09]} 13. c5 {[%emt 0:01:43]} Bc7 {[%emt 0:03:58]} 14. Kb1 {[%emt 0:01:19]} a5 {[%emt 0:01:13]} 15. Be4 {[%emt 0:04:45]} Nb8 {[%emt 0:08:37]} 16. Nf4 {[%emt 0:03:14]} Bxf4 {[%emt 0:01:44]} 17. Bxf4 {[%emt 0:02:23]} Qd7 {[%emt 0:05:43]} 18. Bd6 {[%emt 0:05:01]} Na6 {[%emt 1:09:36]} 19. d5 {[%emt 0:01:53]} cxd5 {[%emt 0:00:00]} 20. Bd3 {[%emt 0:21:42]} Nb4 {[%emt 0:00:00]} 21. Qc1 {[%emt 0:03:25]} Nxd3 {[%emt 0:00:00]} 22. Rxd3 {[%emt 0:00:49]} Bf5 {[%emt 0:00:00]} 23. Qd2 {[%emt 0:01:36]} Qe6 {[%emt 0:00:00]} 24. f3 {[%emt 0:05:11]} Qe3 {[%emt 0:00:00]} 25. Rd1 {[%emt 0:01:45]} d4 {[%emt 0:00:00]} 26. Kc1 {[%emt 0:01:40]} Bxd3 {[%emt 0:00:00]} 27. Qxe3 {[%emt 0:00:39]} dxe3 {[%emt 0:00:00]} 0-1